bitfinex/quotes_ETHUSD_20250908
["timestamp","ask_amount","ask_price","bid_price","bid_amount"]
[1757353809723,10.85347541,4324.4,4324.3,1e-08]
[1757353811923,11.06826156,4324.4,4324.3,1e-08]
[1757353812097,3.10456648,4324.2,4324.1,1e-08]
[1757353812299,8.22083312,4324.2,4324.1,1e-08]
[1757353812620,11.13883312,4324.2,4324.1,1e-08]
[1757353813023,2.31267345,4324.0,4323.8,1e-08]
[1757353813236,7.05815746,4323.9,4323.8,1e-08]
[1757353813387,11.49437624,4323.9,4323.8,1e-08]
[1757353818430,11.7093486,4323.9,4323.8,0.00200001]
[1757353818591,11.2360486,4323.9,4323.8,0.00200001]
[1757353820219,11.73173552,4323.9,4323.8,0.00200001]
[1757353821107,12.20503552,4323.9,4323.8,0.00200001]
[1757353825461,12.20503552,4323.9,4323.7,1e-08]
[1757353825462,3.10478042,4323.8,4323.7,1e-08]
[1757353825677,5.46740762,4323.8,4323.7,1e-08]
[1757353825867,8.38540762,4323.8,4323.7,1e-08]
[1757353826377,8.47796647,4323.8,4323.7,1e-08]
[1757353827832,8.34905668,4323.8,4323.7,1e-08]
[1757353828136,8.00521585,4323.8,4323.7,1e-08]
[1757353828331,8.47851585,4323.8,4323.7,1e-08]
[1757353829837,8.47851585,4323.8,4322.9,0.002]
[1757353829838,3.10520842,4323.0,4322.9,0.002]
[1757353830150,3.10520842,4323.0,4322.8,0.025]
[1757353830151,3.10526193,4322.9,4322.8,1e-08]
[1757353830371,6.86417295,4322.9,4322.8,1e-08]
[1757353831280,6.39087295,4322.9,4322.8,1e-08]
[1757353831466,5.72699489,4322.9,4322.8,1e-08]
[1757353833085,9.30379489,4322.9,4322.8,0.31260001]
[1757353833235,9.30379489,4322.9,4322.8,1e-08]
[1757353833441,12.10289489,4322.9,4322.8,1e-08]
[1757353833780,9.60729489,4322.9,4322.8,1e-08]
[1757353834650,9.30379489,4322.9,4322.8,1e-08]
[1757353835953,9.30379489,4322.9,4322.8,0.00200001]
[1757353839587,5.43479489,4322.9,4322.8,0.00200001]
[1757353839795,5.43479489,4322.9,4322.8,0.31460001]
[1757353839796,9.30379489,4322.9,4322.8,0.31460001]
[1757353840908,9.30379489,4322.9,4322.8,0.00200001]
[1757353841279,9.30379489,4322.9,4322.8,0.31460001]
[1757353841599,11.64859489,4322.9,4322.8,0.00200001]
[1757353841804,12.10289489,4322.9,4322.8,0.00200001]
[1757353842100,11.64859489,4322.9,4322.8,0.00200001]
[1757353842670,9.30366172,4322.9,4322.8,0.00200001]
[1757353846005,12.10276172,4322.9,4322.8,0.00200001]
[1757353846387,11.64846172,4322.9,4322.8,0.00200001]
[1757353846586,9.60716172,4322.9,4322.8,0.00200001]
[1757353846783,7.10358793,4322.9,4322.8,0.31460001]
[1757353846990,7.10358793,4322.9,4322.8,2.45240001]
[1757353847300,7.10358793,4322.9,4322.8,0.31460001]
[1757353849182,3.23458793,4322.9,4322.8,0.31460001]
[1757353849384,7.10358793,4322.9,4322.8,0.31460001]
[1757353851803,7.48430046,4322.9,4322.8,0.31460001]
[1757353852839,9.82910046,4322.9,4322.8,0.00200001]
[1757353853146,10.04486186,4322.9,4322.8,0.00200001]
[1757353853446,7.70006186,4322.9,4322.8,0.00200001]
[1757353854741,7.70106186,4322.9,4322.8,0.00200001]
[1757353854939,7.70106186,4322.9,4322.8,0.31460001]
[1757353855299,8.19849609,4322.9,4322.8,0.31460001]
[1757353855899,8.19849609,4322.9,4322.8,0.00200001]
[1757353857539,8.19849609,4322.9,4322.8,0.31460001]
[1757353859723,8.19849609,4322.9,4322.8,0.00200001]
[1757353859955,8.19849609,4322.9,4322.8,0.31460001]
[1757353860759,8.1987937,4322.9,4322.8,0.00200001]
[1757353860964,10.5435937,4322.9,4322.8,0.00200001]
[1757353861167,11.0097937,4322.9,4322.8,0.00200001]
[1757353861365,4.3297937,4322.9,4322.8,0.00200001]
[1757353861668,8.1977937,4322.9,4322.8,0.00200001]
[1757353861961,8.4846937,4322.9,4322.8,0.00200001]
[1757353862167,10.5617937,4322.9,4322.8,0.00200001]
[1757353862669,11.0279937,4322.9,4322.8,0.00200001]
[1757353864375,8.1977937,4322.9,4322.8,0.00200001]
[1757353864751,8.4846937,4322.9,4322.8,0.00200001]
[1757353865257,10.5617937,4322.9,4322.8,0.00200001]
[1757353865476,11.0279937,4322.9,4322.8,0.00200001]
[1757353865983,8.4846937,4322.9,4322.8,0.00200001]
[1757353866481,11.02782225,4322.9,4322.8,0.00200001]
[1757353866680,10.56162225,4322.9,4322.8,0.00200001]
[1757353867180,10.56202483,4322.9,4322.8,0.00200001]
[1757353867786,11.02822483,4322.9,4322.8,0.00200001]
[1757353873385,3.10617198,4321.2,4321.1,0.02]
[1757353873584,7.51519916,4321.2,4321.1,0.02]
[1757353873788,10.34539916,4321.2,4321.1,0.02]
[1757353873987,7.51519916,4321.2,4321.1,0.02]
[1757353874381,7.51519916,4321.2,4321.1,0.3089]
[1757353874709,7.51519916,4321.2,4321.1,0.02]
[1757353874875,3.10617198,4321.2,4321.1,0.3089]
[1757353875075,3.10617198,4321.2,4321.1,0.7529]
[1757353875271,3.10617198,4321.2,4321.1,0.3089]
[1757353875272,6.18117198,4321.2,4321.1,0.3089]
[1757353875508,7.26007198,4321.2,4321.1,0.02]
[1757353875900,7.38944434,4321.2,4321.1,0.02]
[1757353876101,10.94971876,4321.2,4321.1,0.02]
[1757353876308,10.3541464,4321.2,4321.1,0.02]
[1757353876509,7.9901464,4321.2,4321.1,0.02]
[1757353878010,7.9901464,4321.2,4321.1,0.3089]
[1757353878788,7.9901464,4321.2,4321.1,0.02]
[1757353878988,8.2770464,4321.2,4321.1,0.02]
[1757353879216,7.9901464,4321.2,4321.1,0.3089]
[1757353879885,7.9901464,4321.2,4321.1,0.02]
[1757353879886,10.8203464,4321.2,4321.1,0.02]
[1757353880092,7.9901464,4321.2,4321.1,0.02]
[1757353880683,7.9901464,4321.2,4321.1,0.3089]
[1757353880684,7.9911464,4321.2,4321.1,0.3089]
[1757353881307,7.84431052,4321.2,4320.1,0.02]
[1757353881522,3.10670765,4320.2,4320.1,0.02]
[1757353881821,6.97470765,4320.2,4320.1,0.02]
[1757353882779,7.26160765,4320.2,4320.1,0.02]
[1757353883023,9.80490765,4320.2,4320.1,0.02]
[1757353883180,9.80490765,4320.2,4318.5,0.11429368]
[1757353883181,2.00395434,4320.1,4318.5,0.11429368]
[1757353883383,3.39414356,4319.2,4318.5,0.11429368]
[1757353883615,9.80544356,4319.2,4318.5,0.11429368]
[1757353883812,9.80544356,4319.2,4319.1,0.02]
[1757353883813,11.20310438,4319.2,4319.1,0.02]
[1757353884012,8.37290438,4319.2,4319.1,0.02]
[1757353884196,8.37390438,4319.2,4319.1,0.02]
[1757353884397,4.49690438,4319.2,4319.1,0.02]
[1757353884609,0.792,4319.2,4319.1,0.6529]
[1757353884821,1.776,4320.0,4319.1,2.2644]
[1757353885025,1.776,4320.0,4319.2,1.9555]
[1757353885186,5.9571,4319.9,4319.1,0.3089]
[1757353885396,3.13485407,4319.8,4319.1,0.3089]
[1757353885598,4.673,4319.7,4319.1,0.3089]
[1757353885831,3.10724356,4319.2,4319.1,0.3089]
[1757353889226,0.792,4319.2,4319.1,0.3089]
[1757353889463,0.792,4319.2,4319.1,0.6529]
[1757353889623,0.792,4319.2,4319.1,2.2644]
[1757353890030,0.792,4319.2,4319.1,2.2664]
[1757353893145,0.792,4319.2,4319.1,1.9224]
[1757353893576,0.792,4319.2,4319.1,0.3109]
[1757353894457,0.792,4319.2,4319.1,0.6549]
[1757353894657,0.792,4319.2,4319.1,2.2664]
[1757353895170,1.777,4320.7,4319.1,6.38054]
[1757353895489,2.31444874,4320.7,4319.9,2.31486679]
[1757353895691,2.31443978,4320.7,4320.6,0.3155]
[1757353896189,2.31443978,4320.7,4320.0,1.9555]
[1757353896190,2.42972549,4320.6,4320.0,1.9555]
[1757353896389,0.025,4320.8,4320.5,0.3155]
[1757353896747,2.33942606,4320.8,4320.5,0.3155]
[1757353896943,2.31449335,4320.6,4320.5,0.3155]
[1757353897188,3.10649335,4320.6,4320.5,0.3155]
[1757353897361,2.31444308,4320.7,4320.5,0.3155]
[1757353897564,2.31444278,4320.7,4320.5,0.3155]
[1757353897766,0.792,4320.6,4320.5,0.3155]
[1757353898286,0.817,4320.8,4320.5,0.3155]
[1757353898495,0.025,4320.8,4320.5,0.3155]
[1757353898786,0.792,4320.6,4320.5,0.3155]
[1757353898990,0.025,4320.8,4320.5,0.3155]
[1757353899211,0.792,4320.4,4320.1,3.0]
[1757353899358,0.792,4320.6,4320.3,0.3155]
[1757353899557,3.10650988,4320.6,4320.3,0.3155]
[1757353899950,0.792,4320.4,4320.3,0.3155]
[1757353900252,0.792,4320.0,4319.7,1.777]
[1757353900506,3.41472198,4319.8,4319.7,1.777]
[1757353900707,3.10702916,4319.6,4319.5,0.69458352]
[1757353900932,0.792,4319.3,4319.1,0.022]
[1757353901102,2.31502916,4319.6,4319.1,0.022]
[1757353901103,3.10712038,4319.5,4319.1,0.022]
[1757353901302,3.10712038,4319.5,4319.2,0.3155]
[1757353901501,0.792,4319.6,4319.2,0.3155]
[1757353901708,3.1070321,4319.6,4319.2,0.3155]
[1757353901906,0.792,4319.4,4319.2,0.3155]
[1757353902229,3.1071423,4319.4,4319.2,0.3155]
[1757353902401,3.10714005,4319.4,4319.2,0.3155]
[1757353902732,3.10718996,4319.3,4319.2,0.3155]
[1757353902891,0.9072,4319.2,4319.1,0.022]
[1757353903314,0.9072,4319.2,4319.1,0.3375]
[1757353904631,0.792,4319.9,4319.1,1.9014]
[1757353904834,0.792,4319.5,4319.1,2.2454]
[1757353905197,0.792,4319.5,4319.1,0.6815]
[1757353905398,0.792,4319.5,4319.1,0.3375]
[1757353906005,0.792,4319.5,4319.1,1.03212212]
[1757353907088,2.31504282,4319.6,4319.1,1.03212212]
[1757353907089,0.792,4319.6,4319.1,1.03212212]
[1757353907292,2.31498896,4319.7,4319.1,1.03212212]
[1757353907488,0.792,4319.8,4319.1,1.03212212]
[1757353907704,4.63035629,4320.4,4319.2,3.0]
[1757353907705,0.792,4319.9,4319.2,3.0]
[1757353907948,3.10692006,4319.9,4319.2,3.0]
[1757353908096,0.792,4320.1,4319.2,3.0]
[1757353908298,2.31500992,4319.7,4319.2,3.0]
[1757353909034,0.792,4319.9,4319.6,0.3155]
[1757353909225,0.792,4319.8,4319.6,0.3155]
[1757353909539,1.9996,4320.4,4319.6,0.3155]
[1757353909540,2.31472108,4320.2,4319.8,3.0]
[1757353909848,3.10672108,4320.2,4320.1,0.3155]
[1757353909997,0.792,4319.8,4319.1,0.71662212]
[1757353910335,0.792,4319.6,4319.3,3.0]
[1757353910560,1.9996,4319.9,4319.3,3.0]
[1757353910708,3.10698579,4319.7,4319.3,3.0]
[1757353911048,0.792,4319.4,4319.3,3.0]
[1757353911407,0.792,4319.5,4319.3,3.0]
[1757353912112,0.792,4319.6,4319.4,0.3155]
[1757353912508,3.10694761,4319.8,4319.4,0.3155]
[1757353912735,0.792,4319.6,4319.4,0.3155]
[1757353913346,2.31482584,4320.0,4319.4,0.3155]
[1757353913347,3.10683776,4320.0,4319.4,0.3155]
[1757353913645,0.792,4319.8,4319.4,0.3155]
[1757353913838,3.10692555,4319.8,4319.4,0.3155]
[1757353914010,3.2243,4319.8,4319.4,0.3155]
[1757353914456,0.792,4320.1,4319.4,0.3155]
[1757353914611,0.792,4319.9,4319.4,0.3155]
[1757353915144,0.792,4319.8,4319.4,0.3155]
[1757353915509,0.792,4320.0,4319.4,0.6595]
[1757353915708,3.10682328,4320.0,4319.4,0.6595]
[1757353915904,3.10682328,4320.0,4319.4,0.3155]
[1757353916124,0.792,4320.0,4319.4,0.3155]
[1757353916324,3.10684869,4320.0,4319.4,0.3155]
[1757353916526,3.10684869,4320.0,4319.5,0.21628309]
[1757353916722,3.10684869,4320.0,4319.7,3.0]
[1757353916923,3.10684869,4320.0,4319.8,0.21628309]
[1757353917139,3.10684869,4320.0,4319.9,0.21628309]
[1757353917452,3.84734869,4320.0,4319.9,0.21628309]
[1757353917837,5.84694869,4320.0,4319.9,0.21628309]
[1757353919951,6.66321433,4320.0,4319.9,0.21628309]
[1757353921354,4.34836564,4320.0,4319.9,0.21628309]
[1757353921669,6.66318045,4320.0,4319.9,0.21628309]
[1757353923228,6.66318045,4320.0,4319.5,3.885]
[1757353923229,0.792,4319.6,4319.5,3.885]
[1757353923429,6.17222672,4319.6,4319.5,4.10143346]
[1757353923633,10.05622672,4319.6,4319.5,0.21643346]
[1757353923832,3.10724356,4319.2,4319.1,0.022]
[1757353924144,3.10740438,4318.9,4318.8,0.025]
[1757353924351,3.41280438,4318.9,4318.8,0.025]
[1757353924685,3.84790438,4318.9,4318.8,0.025]
[1757353924964,5.86190438,4318.9,4318.8,0.025]
[1757353925572,5.86190438,4318.9,4318.8,0.24135562]
[1757353925762,6.61744864,4318.9,4318.8,0.24135562]
[1757353928100,6.18234864,4318.9,4318.8,0.24135562]
[1757353928298,3.884,4319.1,4318.8,0.54135562]
[1757353928460,4.3191,4319.4,4318.9,0.21635562]
[1757353928797,0.792,4319.1,4319.0,0.21635562]
[1757353928964,2.3150487,4319.6,4319.3,0.3]
[1757353929159,0.4351,4319.9,4319.3,0.3]
[1757353929160,2.31508276,4319.5,4319.4,0.21635562]
[1757353929502,2.31492198,4319.8,4319.4,0.21635562]
[1757353929660,2.31508276,4319.5,4319.0,3.0]
[1757353929859,3.1071405,4319.4,4319.1,0.21631537]
[1757353930203,0.001,4319.8,4319.2,0.21631537]
[1757353930405,0.001,4319.8,4319.6,0.3]
[1757353930612,0.001,4319.8,4319.7,8.88031537]
[1757353930816,2.75102198,4319.8,4319.7,1.99331537]
[1757353931022,4.12352418,4319.8,4319.7,1.99331537]
[1757353931318,3.38302418,4319.8,4319.7,0.21631537]
[1757353931675,6.13752418,4319.8,4319.7,0.21631537]
[1757353932673,6.13752418,4319.8,4319.0,1.777]
[1757353932674,3.10729716,4319.1,4319.0,1.777]
[1757353932912,3.10740438,4318.9,4318.8,5.521]
[1757353933125,3.41280438,4318.9,4318.8,5.73738148]
[1757353933324,5.86190438,4318.9,4318.8,5.73738148]
[1757353933528,6.67962453,4318.9,4318.8,5.73738148]
[1757353933725,5.86190438,4318.9,4318.8,5.73738148]
[1757353934191,5.86190438,4318.9,4318.8,2.73738148]
[1757353934730,5.86190438,4318.9,4318.8,0.24338148]
[1757353938243,3.41280438,4318.9,4318.8,0.24338148]
[1757353938807,3.84790438,4318.9,4318.8,0.24338148]
[1757353939054,6.86812719,4318.9,4318.8,0.24338148]
[1757353941246,1.79822281,4318.9,4318.8,0.24338148]
[1757353941409,4.11362719,4318.9,4318.8,0.24338148]
[1757353942036,0.792,4318.9,4318.8,0.24338148]
[1757353942236,1.5325,4318.9,4318.8,0.24323055]
[1757353942422,5.86190438,4318.9,4318.8,0.24323055]
[1757353943214,1.0974,4318.9,4318.8,0.24323055]
[1757353943408,3.10740438,4318.9,4318.8,0.24323055]
[1757353943667,1.49244044,4318.9,4318.8,0.24323055]
[1757353943821,0.792,4318.9,4318.8,0.54323055]
[1757353944151,3.10740438,4318.9,4318.8,0.24323055]
[1757353944329,0.792,4318.9,4318.8,0.24323055]
[1757353944647,0.792,4318.9,4318.8,0.54323055]
[1757353945036,3.10740438,4318.9,4318.8,0.24323055]
[1757353946576,3.10740438,4318.9,4318.8,0.027]
[1757353947272,3.10740438,4318.9,4318.8,0.24334408]
[1757353947450,3.84790438,4318.9,4318.8,0.24334408]
[1757353947638,5.86190438,4318.9,4318.8,0.24334408]
[1757353948246,3.84790438,4318.9,4318.8,0.24334408]
[1757353948481,0.792,4318.9,4318.8,0.54334408]
[1757353948887,3.10740438,4318.9,4318.8,0.54334408]
[1757353950549,3.10740438,4318.9,4318.8,0.24334408]
[1757353951761,3.42080438,4318.9,4318.8,0.24334408]
[1757353952364,3.10740438,4318.9,4318.8,0.55264408]
[1757353953503,3.10740438,4318.9,4318.8,0.24334408]
[1757353954192,6.37243729,4318.9,4318.8,0.24334408]
[1757353955006,6.71748477,4318.9,4318.8,0.027]
[1757353955790,7.2143546,4318.9,4318.8,0.027]
[1757353956719,7.2143546,4318.9,4317.3,0.09265554]
[1757353956720,0.792,4317.2,4317.1,0.02]
[1757353956919,3.10831613,4317.2,4317.1,0.02]
[1757353957235,6.71797176,4317.2,4317.1,0.02]
[1757353957534,7.06235926,4317.2,4317.1,0.02]
[1757353958490,10.61297176,4317.2,4317.1,0.02]
[1757353958719,10.95690609,4317.2,4317.1,0.02]
[1757353958891,7.06190609,4317.2,4317.1,0.02]
[1757353959097,10.95990609,4317.2,4317.1,0.02]
[1757353959297,10.61597176,4317.2,4317.1,0.02]
[1757353959512,10.95963819,4317.2,4317.1,0.02]
[1757353959697,11.17442926,4317.2,4317.1,0.02]
[1757353960527,11.17428168,4317.2,4317.1,0.02]
[1757353961405,10.83061525,4317.2,4317.1,0.02]
[1757353961804,11.045178,4317.2,4317.1,0.02]
[1757353962005,11.17391517,4317.2,4317.1,0.02]
[1757353962205,10.83061525,4317.2,4317.1,0.02]
[1757353962822,3.1084771,4316.9,4316.8,0.025]
[1757353963020,8.58614202,4316.9,4316.8,0.025]
[1757353963234,11.26384202,4316.9,4316.8,0.025]
[1757353963444,11.47818097,4316.9,4316.8,1e-08]
[1757353963616,11.82110693,4316.9,4316.8,1e-08]
[1757353963815,0.792,4316.8,4316.1,0.02]
[1757353964164,3.10885278,4316.2,4316.1,0.02]
[1757353964343,7.32425278,4316.2,4316.1,0.02]
[1757353964528,5.78655278,4316.2,4316.1,0.02]
[1757353964714,7.77385278,4316.2,4316.1,0.02]
[1757353965045,7.01285278,4316.2,4316.1,0.02]
[1757353965627,3.10885278,4316.2,4316.1,0.02]
[1757353965817,7.01185278,4316.2,4316.1,0.3293]
[1757353966031,3.10885278,4316.2,4316.1,0.3293]
[1757353966233,3.10885278,4316.2,4316.1,0.02]
[1757353966570,3.10885278,4316.2,4316.1,0.3293]
[1757353966571,0.792,4316.2,4316.1,0.3293]
[1757353966748,3.10885278,4316.2,4316.1,0.3293]
[1757353968737,3.10885278,4316.2,4316.1,0.3313]
[1757353971543,2.31677742,4316.4,4316.1,0.3313]
[1757353971544,1.9147,4317.3,4316.1,2.1257]
[1757353971758,2.31680865,4316.3,4316.1,0.3313]
[1757353971957,2.31664189,4316.6,4316.1,0.3313]
[1757353971958,0.792,4316.2,4316.1,0.3313]
[1757353972772,0.792,4316.2,4315.8,0.025]
[1757353972773,2.31701383,4315.9,4315.8,0.025]
[1757353973058,7.01001383,4315.9,4315.8,0.025]
[1757353973269,8.52388123,4315.9,4315.8,0.025]
[1757353973478,6.98718123,4315.9,4315.8,0.025]
[1757353974053,8.98148123,4315.9,4315.8,0.025]
[1757353974219,10.89618123,4315.9,4315.8,0.025]
[1757353978158,11.10992744,4315.9,4315.8,0.025]
[1757353978883,11.10892744,4315.9,4315.8,0.025]
[1757353979255,3.73122744,4315.9,4315.8,0.025]
[1757353979456,2.84424443,4315.9,4315.8,0.025]
[1757353979656,6.00054443,4315.9,4315.8,0.025]
[1757353980779,4.08584443,4315.9,4315.8,0.025]
[1757353980950,3.87201383,4315.9,4315.8,0.025]
[1757353981359,4.08604192,4315.9,4315.8,0.025]
[1757353981567,5.30851213,4315.9,4315.8,0.025]
[1757353981979,9.22051213,4315.9,4315.8,0.025]
[1757353982178,8.77091213,4315.9,4315.8,0.025]
[1757353982549,8.45751213,4315.9,4315.8,0.025]
[1757353982782,8.45751213,4315.9,4315.8,0.3329]
[1757353983776,8.45751213,4315.9,4315.8,0.025]
[1757353984107,10.99661213,4315.9,4315.8,0.025]
[1757353984956,8.45851213,4315.9,4315.8,0.025]
[1757353985159,11.12658321,4315.9,4315.8,0.025]
[1757353985663,11.12658321,4315.9,4315.4,0.0075]
[1757353985886,3.10922859,4315.5,4315.4,0.0075]
[1757353986063,3.66709097,4315.5,4315.4,0.0075]
[1757353986262,6.20619097,4315.5,4315.4,0.0075]
[1757353986598,6.70135448,4315.5,4315.4,0.0075]
[1757353987110,4.45555448,4315.5,4315.4,0.0075]
[1757353987268,4.16225448,4315.5,4315.4,0.0075]
[1757353987596,7.67220748,4315.5,4315.4,0.0075]
[1757353987782,8.10029211,4315.5,4315.4,0.0075]
[1757353989896,0.792,4315.2,4315.1,0.02]
[1757353990097,7.58125207,4315.2,4315.1,0.02]
[1757353990275,2.31744339,4315.1,4313.8,0.025]
[1757353990475,2.3180343,4314.0,4313.8,0.025]
[1757353990703,2.3180343,4314.0,4312.1,0.02]
[1757353990705,2.31814177,4313.8,4312.1,0.02]
[1757353990932,3.11057175,4313.0,4312.1,0.02]
[1757353991117,2.31873304,4312.7,4311.1,0.02]
[1757353991276,0.792,4312.8,4309.8,0.025]
[1757353991277,0.792,4311.3,4309.8,0.025]
[1757353991470,3.40537795,4310.2,4309.8,0.025]
[1757353991679,7.56540604,4310.2,4309.8,0.025]
[1757353991906,10.79974561,4310.2,4309.8,0.025]
[1757353992113,6.98223664,4310.2,4309.8,0.025]
[1757353992378,6.98223664,4310.2,4308.8,0.025]
[1757353992379,4.7283631,4310.2,4308.9,0.4725]
[1757353992577,0.792,4310.0,4308.8,1.804]
[1757353992878,4.757,4310.0,4309.1,0.4925]
[1757353993193,1.0853,4309.2,4307.8,0.025]
[1757353993428,0.792,4309.2,4307.9,1.5664]
[1757353993609,0.792,4309.2,4307.8,0.025]
[1757353993610,1.8181,4309.1,4307.8,0.025]
[1757353993796,3.406455,4308.2,4307.8,0.025]
[1757353993996,0.792,4308.2,4307.8,0.025]
[1757353994196,0.792,4308.2,4308.1,0.4279]
[1757353994399,0.792,4308.2,4308.1,4.78800888]
[1757353994579,0.82448827,4310.3,4308.1,1.31923067]
[1757353994580,0.792,4309.5,4308.1,1.31923067]
[1757353994792,0.792,4309.1,4308.1,3.4279]
[1757353995006,0.792,4309.3,4308.1,3.4279]
[1757353995228,0.792,4309.3,4308.1,0.12]
[1757353995229,0.792,4309.1,4308.1,0.12]
[1757353995553,0.792,4308.3,4308.1,0.12]
[1757353995823,5.224555,4308.2,4308.1,0.12]
[1757353995997,0.792,4308.2,4308.1,0.12]
[1757353996197,5.652255,4308.2,4308.1,0.12]
[1757353996520,5.86361769,4308.2,4308.1,0.12]
[1757353996745,3.792,4308.1,4307.1,0.02]
[1757353996954,3.1136939,4307.2,4307.1,0.02]
[1757353997222,6.6177523,4307.2,4307.1,1e-08]
[1757353997425,8.8635523,4307.2,4307.1,1e-08]
[1757353997584,5.8635523,4307.2,4307.1,1e-08]
[1757353998000,3.1141584,4307.2,4307.1,1e-08]
[1757353998199,5.6527939,4307.2,4307.1,1e-08]
[1757353998403,10.53623401,4307.2,4307.1,1e-08]
[1757353998603,3.11374781,4307.1,4306.8,1e-08]
[1757353998800,3.11374781,4307.1,4304.8,0.025]
[1757353998801,0.792,4306.2,4304.8,0.025]
[1757353999014,5.872,4306.1,4304.9,0.09294987]
[1757353999189,3.40807246,4305.2,4304.9,0.09294987]
[1757353999418,0.792,4305.2,4304.8,0.025]
[1757353999612,0.792,4305.2,4305.1,0.11294987]
[1757354000125,1.8181,4305.7,4304.8,0.025]
[1757354000332,1.78,4306.1,4302.1,0.023]
[1757354000333,3.0,4304.8,4302.1,0.023]
[1757354000531,5.75054277,4305.1,4302.1,0.023]
[1757354000532,2.573,4304.7,4302.4,1.5664]
[1757354000691,2.32330537,4304.3,4302.5,0.15694]
[1757354000886,6.7141854,4304.7,4302.6,32.06214176]
[1757354000887,0.792,4304.7,4302.6,32.06214176]
[1757354001118,1.781,4305.7,4302.9,2.32400001]
[1757354001119,2.32255667,4305.6,4302.9,2.32400001]
[1757354001317,2.32255667,4305.6,4303.1,3.0]
[1757354001500,2.32255667,4305.6,4303.8,2.32348893]
[1757354001702,2.32290587,4305.0,4303.9,0.23234889]
[1757354001930,1.8181,4305.6,4304.0,0.4725]
[1757354002087,0.4277,4305.9,4304.0,4.5664]
[1757354002088,0.792,4305.2,4304.0,4.5664]
[1757354002287,1.781,4306.1,4304.0,4.5664]
[1757354002288,0.792,4304.6,4304.0,3.0]
[1757354002489,0.792,4304.6,4303.9,1.781]
[1757354002696,0.792,4304.6,4302.3,2.32731658]
[1757354002697,0.792,4303.8,4302.9,1.781]
[1757354002995,0.792,4304.4,4303.0,0.4725]
[1757354003187,0.792,4304.4,4302.9,2.37425]
[1757354003188,0.792,4304.4,4302.9,5.84675]
[1757354003389,0.792,4304.3,4302.9,2.84675]
[1757354003601,0.792,4304.1,4303.0,3.0]
[1757354003784,0.792,4304.2,4303.0,3.0]
[1757354004007,0.792,4304.2,4302.9,2.2535]
[1757354004222,3.62,4304.8,4303.0,2.0389]
[1757354004427,0.792,4304.5,4303.0,5.0389]
[1757354004731,3.62,4304.8,4303.1,0.4725]
[1757354004901,2.32320891,4304.4,4303.2,3.0]
[1757354005103,2.32320891,4304.4,4302.9,1.781]
[1757354005104,3.11534911,4304.2,4302.9,1.781]
[1757354005313,0.792,4304.2,4302.9,1.781]
[1757354005514,0.792,4304.2,4303.0,0.4725]
[1757354005715,0.02,4304.9,4303.1,2.32390602]
[1757354005716,2.2658,4304.9,4303.1,2.32390602]
[1757354005953,0.792,4304.8,4304.1,0.3079]
[1757354006229,1.8381,4304.9,4304.1,0.3079]
[1757354006230,0.02,4304.9,4304.1,0.3079]
[1757354006592,0.02,4304.9,4304.2,0.4725]
[1757354006804,0.02,4304.9,4304.3,3.0]
[1757354007010,0.02,4304.9,4304.8,0.3079]
[1757354007257,0.02,4304.9,4304.8,9.2879]
[1757354007461,0.02,4304.9,4304.8,9.7604]
[1757354007622,0.02,4304.9,4304.1,0.69709809]
[1757354007833,0.02,4304.9,4304.0,0.4725]
[1757354008050,0.02,4304.9,4304.0,4.16961106]
[1757354008372,0.02,4304.9,4304.0,2.87356896]
[1757354008373,0.025,4304.8,4304.0,2.87356896]
[1757354008654,0.025,4304.8,4304.7,0.3079]
[1757354008869,0.025,4304.8,4304.7,41.60994225]
[1757354009050,0.025,4304.8,4304.7,42.08244225]
[1757354009240,0.025,4304.8,4304.7,39.45184225]
[1757354009442,0.025,4304.8,4304.7,40.54879234]
[1757354009629,0.025,4304.8,4304.7,44.74879234]
[1757354010008,0.02,4304.9,4304.7,44.74879234]
[1757354010009,0.025,4305.8,4305.7,2.32250272]
[1757354010246,0.025,4305.8,4305.7,8.30450272]
[1757354010454,0.025,4305.8,4305.7,10.65130272]
[1757354010716,0.025,4305.8,4305.7,2.18280108]
[1757354011026,0.025,4305.8,4304.7,1.09695009]
[1757354011027,0.817,4305.8,4304.7,1.782]
[1757354011229,0.792,4305.4,4304.8,4.212]
[1757354011757,2.32266456,4305.4,4304.8,4.30493389]
[1757354012070,0.792,4305.5,4304.8,4.30493389]
[1757354012282,0.792,4305.5,4304.8,3.09293389]
[1757354012559,0.792,4305.0,4304.8,0.09293389]
[1757354012856,3.11493433,4304.9,4304.8,0.09293389]
[1757354013054,0.792,4304.4,4304.1,0.4281]
[1757354013259,1.10351957,4304.4,4304.1,0.69709]
[1757354013502,0.4283,4305.5,4303.8,0.025]
[1757354013503,0.792,4304.1,4303.8,0.025]
[1757354013661,0.792,4303.9,4303.8,0.025]
[1757354013820,3.11547405,4303.9,4303.8,0.025]
[1757354014018,3.43971068,4303.9,4303.8,0.025]
[1757354014428,3.11547405,4303.9,4303.8,0.025]
[1757354014629,3.42607405,4303.9,4303.8,0.025]
[1757354014831,5.64917405,4303.9,4303.8,0.025]
[1757354015160,3.42607405,4303.9,4303.1,0.022]
[1757354015358,0.792,4303.8,4303.1,0.022]
[1757354015530,3.11585201,4303.2,4303.1,0.022]
[1757354016132,5.22125201,4303.2,4303.1,0.022]
[1757354016345,5.64955201,4303.2,4303.1,0.022]
[1757354016548,5.64955201,4303.2,4303.1,1e-08]
[1757354016770,0.792,4302.8,4302.3,0.003]
[1757354017061,3.11628412,4302.4,4302.3,0.003]
[1757354017279,3.42688412,4302.4,4302.3,0.003]
[1757354017585,0.792,4302.4,4302.3,0.003]
[1757354018083,0.792,4302.4,4302.3,0.745]